bitfinex-derivatives/quotes_SOLF0:USTF0_20240923
["timestamp","ask_amount","ask_price","bid_price","bid_amount"]
[1727065669279,3.3957,147.24,147.22,7.3]
[1727065669482,1.3892,147.25,147.22,7.3]
[1727065670279,3.3958,147.23,147.22,7.3]
[1727065672674,3.3961,147.22,147.19,3.3966]
[1727065672978,3.3961,147.22,147.2,7.3]
[1727065676784,3.3961,147.22,147.21,7.3]
[1727065678983,3.3961,147.22,147.19,3.3966]
[1727065679181,7.3,147.23,147.17,8.64]
[1727065679383,7.3,147.23,147.19,7.3]
[1727065679787,3.3957,147.24,147.2,7.3]
[1727065679984,1.3892,147.25,147.22,7.3]
[1727065680985,1.3892,147.25,147.17,2.7008]
[1727065681183,1.3892,147.25,147.22,7.3]
[1727065681485,1.3944,147.29,147.24,7.3]
[1727065681882,3.395,147.27,147.24,10.6955]
[1727065682288,3.3947,147.28,147.25,3.3953]
[1727065682488,3.3947,147.28,147.26,7.3]
[1727065682994,8.6992,147.31,147.26,7.3]
[1727065683294,3.3947,147.28,147.26,7.3]
[1727065683486,8.6992,147.31,147.26,7.3]
[1727065683690,2.4325,147.32,147.29,7.3]
[1727065683894,1.0,147.32,147.31,7.3]
[1727065684185,3.3931,147.35,147.31,10.6939]
[1727065684491,3.3931,147.35,147.33,7.3]
[1727065685186,3.3933,147.34,147.32,7.3]
[1727065687794,3.3939,147.32,147.28,3.3945]
[1727065688089,7.3,147.34,147.29,7.3]
[1727065688292,3.394,147.32,147.29,7.3]
[1727065688489,7.3,147.34,147.29,7.3]
[1727065688893,7.3,147.33,147.27,7.3]
[1727065689187,3.3942,147.3,147.27,7.3]
[1727065690987,3.3947,147.28,147.25,6.1087]
[1727065691186,3.3947,147.28,147.26,7.3]
[1727065692283,1.4457,147.36,147.25,7.3]
[1727065692284,7.3,147.3,147.25,7.3]
[1727065692487,7.3,147.29,147.24,7.3]
[1727065692896,3.3951,147.27,147.24,7.3]
[1727065693388,1.4457,147.36,147.25,7.3]
[1727065693587,7.3,147.32,147.27,7.3]
[1727065693994,7.3,147.3,147.25,7.3]
[1727065694197,10.6190757,147.3,147.25,7.3]
[1727065694696,10.6190757,147.3,147.17,2.7445]
[1727065694891,7.3,147.3,147.24,7.3]
[1727065695290,3.3951,147.27,147.24,7.3]
[1727065697186,7.3,147.31,147.26,7.3]
[1727065697386,7.3,147.31,147.27,7.3]
[1727065697586,1.0,147.35,147.27,7.3]
[1727065697587,7.3,147.33,147.27,7.3]
[1727065697794,3.3944,147.3,147.27,7.3]
[1727065698303,3.395,147.27,147.26,7.3]
[1727065698493,3.395,147.27,147.23,3.45651572]
[1727065698794,3.395,147.27,147.24,7.3]
[1727065699393,3.3952,147.26,147.23,3.3956]
[1727065699595,3.3952,147.26,147.23,10.6956]
[1727065700794,7.3,147.3,147.25,7.3]
[1727065701104,1.0,147.35,147.26,7.3]
[1727065701398,3.3951,147.27,147.25,7.3]
[1727065702797,7.3,147.3,147.25,7.3]
[1727065703387,10.7361413,147.3,147.25,7.3]
[1727065705698,3.3951,147.26,147.25,7.3]
[1727065705895,10.7361413,147.3,147.25,7.3]
[1727065706403,10.7361413,147.3,147.23,3.44836956]
[1727065706603,10.7361413,147.3,147.24,7.3]
[1727065706804,3.3954,147.25,147.24,7.3]
[1727065707497,8.6635,147.29,147.23,7.3]
[1727065707498,3.3957,147.24,147.23,7.3]
[1727065710804,3.3955,147.25,147.23,7.3]
[1727065711603,7.3,147.28,147.17,2.7445]
[1727065711809,7.3,147.26,147.17,2.7445]
[1727065712008,7.3,147.26,147.2,7.3]
[1727065713499,2.7469,147.28,147.17,2.7445]
[1727065713704,10.0469,147.28,147.22,7.3]
[1727065714410,3.3958,147.23,147.22,7.3]
[1727065715212,10.0469,147.28,147.22,7.3]
[1727065715716,3.3958,147.23,147.22,7.3]
[1727065716399,7.3,147.27,147.22,7.3]
[1727065716601,10.0469,147.28,147.23,7.3]
[1727065717004,3.3958,147.24,147.17,2.7445]
[1727065717309,10.0469,147.28,147.23,7.3]
[1727065717701,7.3,147.27,147.17,2.7445]
[1727065718108,7.3,147.27,147.21,7.3]
[1727065718310,3.3959,147.23,147.21,7.3]
[1727065719912,3.3955,147.25,147.22,7.3]
[1727065720111,2.7469,147.28,147.24,7.3]
[1727065720613,3.395,147.27,147.25,7.3]
[1727065721019,1.3635,147.29,147.25,7.3]
[1727065721611,3.3951,147.26,147.25,7.3]
[1727065722613,3.3951,147.26,147.24,7.3]
[1727065724124,7.3,147.28,147.22,7.3]
[1727065724923,7.3,147.27,147.21,7.3]
[1727065725320,7.3,147.27,147.22,7.3]
[1727065725822,7.3,147.27,147.17,2.7445]
[1727065725823,7.3,147.27,147.21,7.3]
[1727065726326,7.3,147.27,147.21,10.6962]
[1727065726327,3.3957,147.24,147.21,10.6962]
[1727065727322,7.3,147.25,147.17,1.4241]
[1727065727523,2.7461,147.28,147.18,7.3]
[1727065727524,7.3,147.23,147.18,7.3]
[1727065729427,3.3967,147.2,147.18,7.3]
[1727065731123,3.3967,147.19,147.18,7.3]
[1727065731329,7.3,147.19,147.14,7.3]
[1727065731829,3.3976,147.16,147.14,7.3]
[1727065733834,3.3973,147.17,147.14,7.3]
[1727065735334,3.3975,147.16,147.14,7.3]
[1727065737037,7.3,147.2,147.15,7.3]
[1727065737730,3.3969,147.19,147.15,10.6975]
[1727065739033,3.3969,147.19,147.16,3.3974]
[1727065739340,1.3614,147.22,147.17,7.3]
[1727065739637,7.3,147.22,147.18,7.3]
[1727065739839,3.3965,147.21,147.18,7.3]
[1727065740042,7.3,147.22,147.18,7.3]
[1727065740336,7.3,147.22,147.18,10.6968]
[1727065740533,7.3,147.22,147.18,7.3]
[1727065740534,3.3964,147.21,147.18,7.3]
[1727065741941,7.3,147.25,147.19,7.3]
[1727065742235,7.3,147.25,147.2,3.3965]
[1727065742634,7.3,147.25,147.19,7.3]
[1727065742833,7.3,147.24,147.19,10.6967]
[1727065743542,3.3962,147.22,147.19,10.6967]
[1727065744345,3.3965,147.21,147.13,1.3638]
[1727065744642,7.3,147.24,147.18,7.3]
[1727065745039,3.3964,147.21,147.18,7.3]
[1727065745339,7.3,147.21,147.15,7.3]
[1727065745538,3.3969,147.19,147.16,3.3974]
[1727065745742,7.3,147.21,147.15,7.3]
[1727065746134,3.3969,147.19,147.16,3.3974]
[1727065747137,7.3,147.2,147.17,10.6972]
[1727065747138,3.3966,147.2,147.17,10.6972]
[1727065748042,3.3966,147.2,147.17,3.3972]
[1727065748244,3.3966,147.2,147.16,10.6974]
[1727065748540,3.3968,147.19,147.16,3.3974]
[1727065748741,7.3,147.2,147.15,10.6976]
[1727065748946,7.3,147.19,147.14,7.3]
[1727065749141,3.3968,147.19,147.15,7.3]
[1727065749844,3.397,147.18,147.15,10.6975]
[1727065751549,3.3968,147.19,147.15,10.6975]
[1727065751937,3.397,147.18,147.15,3.3975]
[1727065752144,7.3,147.19,147.14,10.6978]
[1727065753547,1.4098,147.21,147.07,1.3974]
[1727065753751,7.3,147.15,147.1,7.3]
[1727065754248,3.398,147.14,147.1,10.6987]
[1727065754950,7.3,147.17,147.12,7.3]
[1727065755449,3.3978,147.15,147.12,10.6982]
[1727065755752,7.3,147.17,147.12,7.3]
[1727065755949,1.0,147.18,147.13,7.3]
[1727065756145,1.4098,147.21,147.16,7.3]
[1727065756356,8.7098,147.21,147.16,7.3]
[1727065757042,3.3969,147.19,147.16,10.6974]
[1727065757446,8.7098,147.21,147.16,7.3]
[1727065758047,7.3,147.19,147.14,7.3]
[1727065758252,7.3,147.18,147.07,2.7539]
[1727065758547,7.3,147.18,147.12,7.3]
[1727065758943,3.3976,147.16,147.13,3.398]
[1727065760157,3.3976,147.16,147.12,10.6983]
[1727065762258,3.3976,147.16,147.13,3.3981]
[1727065762456,7.3,147.16,147.07,2.7539]
[1727065762652,7.3,147.16,147.1,7.3]
[1727065762857,7.3,147.16,147.11,3.3986]
[1727065763061,3.3981,147.14,147.11,3.3986]
[1727065763259,3.3981,147.14,147.1,10.6987]
[1727065763660,3.3982,147.13,147.1,10.6987]
[1727065764056,7.3,147.15,147.1,7.3]
[1727065764360,7.3,147.15,147.09,10.699]
[1727065764559,7.3,147.15,147.09,3.399]
[1727065764760,7.3,147.15,147.09,10.699]
[1727065766061,7.3,147.13,147.07,1.3565]
[1727065766257,7.3,147.12,147.08,7.3]
[1727065766765,3.399,147.1,147.08,7.3]
[1727065767961,3.399,147.1,147.09,7.3]
[1727065768367,3.3991,147.09,147.08,7.3]
[1727065768568,3.3991,147.09,147.05,78.02006703]
[1727065768759,3.3988,147.11,147.08,7.3]
[1727065769063,1.3793,147.13,147.08,7.3]
[1727065769565,7.3,147.1,146.92,7.10000017]
[1727065769764,7.3,147.1,146.9,33.17836728]
[1727065769765,1.4075,147.09,147.02,7.3]
[1727065770072,3.3997,147.07,147.04,7.3]
[1727065770260,3.3997,147.07,146.99,1.3999]
[1727065770460,3.3997,147.07,146.95,1.3049]
[1727065770461,3.3999,147.06,146.95,1.3049]
[1727065770758,10.6999,147.06,147.01,7.3]
[1727065770963,3.3999,147.06,147.01,10.75204081]
[1727065771167,3.3999,147.06,147.03,7.3]
[1727065771468,1.4075,147.09,147.02,7.3]
[1727065771667,7.3,147.08,147.02,7.3]
[1727065772060,3.4002,147.05,147.02,7.3]
[1727065772367,3.4002,147.05,147.0,14.87489795]
[1727065772667,3.4002,147.05,147.0,11.43]
[1727065772962,3.3998,147.06,147.0,14.83306122]
[1727065773261,3.3998,147.06,147.01,3.4009]
[1727065773561,1.4075,147.09,147.0,3.40306122]
[1727065773766,1.4075,147.09,147.0,3.4011]
[1727065773959,1.4075,147.09,147.0,6.77718252]
[1727065774267,1.4075,147.09,147.0,3.37608252]
[1727065774563,1.4075,147.09,147.0,11.43]
[1727065775359,3.4002,147.05,147.0,11.43]
[1727065775956,3.4002,147.05,147.0,14.8311]
[1727065776160,3.4002,147.04,146.99,14.74690074]
[1727065776364,3.4002,147.04,146.99,11.43]
[1727065776672,3.36383801,147.06,146.99,3.44240693]
[1727065776861,11.43,147.05,146.96,2.7695]
[1727065777064,3.4009,147.01,146.96,6.1715]
[1727065777270,1.3224,147.06,146.85,6.793]
[1727065777567,11.43,147.0,146.91,1.3788]
[1727065777760,11.43,147.0,146.92,3.36928001]
[1727065778167,11.43,147.0,146.91,1.3788]
[1727065778364,11.43,146.98,146.91,1.3788]
[1727065778566,3.4023,146.96,146.91,1.3788]
[1727065779167,11.43,146.94,146.78,3.48628308]
[1727065779371,11.43,146.94,146.86,11.43]
[1727065779871,11.43,146.96,146.88,11.43]
[1727065780265,3.4032,146.92,146.86,14.1806]
[1727065780464,11.43,146.94,146.86,14.1806]
[1727065780770,3.4039,146.89,146.84,1.3992]
[1727065780975,11.43,146.93,146.84,1.3992]
[1727065781270,6.24575393,146.97,146.85,11.43]
[1727065781271,11.43,146.95,146.85,11.43]
[1727065781571,11.43,146.95,146.85,12.8169]
[1727065781971,3.4035,146.9,146.85,16.2213]
[1727065782173,11.43,146.95,146.85,12.8169]
[1727065782970,11.43,146.96,146.87,11.43]
[1727065783167,11.43,146.96,146.87,14.8341]
[1727065783480,11.43,146.96,146.87,11.43]
[1727065783771,3.4039,146.89,146.85,1.3869]
[1727065784169,11.43,146.93,146.78,1.4246]
[1727065784475,11.43,146.91,146.82,11.43]
[1727065784974,1.4162,146.92,146.79,2.8822]
[1727065785173,1.3136,146.9,146.8,11.43]
[1727065785374,3.4043,146.87,146.81,3.4054]
[1727065785579,12.7436,146.9,146.81,3.4054]
[1727065785871,3.4039,146.88,146.81,3.34389438]
[1727065786175,3.4039,146.88,146.79,2.8822]
[1727065786389,3.4039,146.88,146.82,11.43]
[1727065786887,3.4039,146.88,146.83,3.405]
[1727065787479,3.4042,146.87,146.82,18.21802593]
[1727065787883,3.4042,146.87,146.82,14.81272593]
[1727065788083,3.4039,146.88,146.83,3.405]
[1727065788280,12.7436,146.9,146.79,2.8822]
[1727065788485,12.7436,146.9,146.8,12.68147303]
[1727065788786,3.4042,146.87,146.82,14.8353]
[1727065788988,12.7436,146.9,146.81,11.43]
[1727065789284,12.7436,146.9,146.82,3.4053]
[1727065789485,12.7436,146.9,146.81,14.75652881]
[1727065790081,1.3136,146.9,146.83,11.43]
[1727065790786,13.8462,146.92,146.83,11.43]
[1727065790992,13.8462,146.92,146.81,3.32652881]
[1727065791178,3.4038,146.89,146.84,3.4047]
[1727065791379,13.8462,146.92,146.84,11.43]
[1727065791584,2.4162,146.92,146.84,11.43]
[1727065792587,1.3495,146.97,146.9,11.43]
[1727065792792,1.3495,146.97,146.87,11.43]
[1727065793285,11.43,146.95,146.87,11.43]
[1727065793484,11.43,146.95,146.84,3.46349673]
[1727065793785,11.43,146.94,146.86,11.43]
[1727065793991,11.43,146.95,146.86,11.43]
[1727065794394,3.4034,146.91,146.87,3.4041]
[1727065794786,11.43,146.95,146.86,11.43]
[1727065795488,3.4032,146.92,146.87,3.404]
[1727065795688,11.43,146.95,146.86,11.43]
[1727065795891,11.43,146.94,146.85,3.36273055]
[1727065796195,3.404,146.88,146.84,3.4046]
[1727065796379,1.3467,146.93,146.84,6.76097912]
[1727065796784,3.4038,146.89,146.84,6.76097912]
[1727065796988,1.3467,146.93,146.84,3.35637912]
[1727065797388,2.6868,146.93,146.84,3.35637912]
[1727065797586,2.6868,146.93,146.83,11.43]
[1727065797784,11.43,146.92,146.83,11.43]
[1727065798188,11.43,146.92,146.84,3.4048]
[1727065798387,11.43,146.92,146.83,14.80544558]
[1727065798791,11.43,146.92,146.83,18.21034558]
[1727065799392,11.43,146.92,146.84,3.4048]
[1727065800395,11.43,146.92,146.83,18.21054558]
[1727065801392,3.404,146.88,146.84,3.4048]
[1727065801990,3.4038,146.89,146.85,3.4046]
[1727065802300,1.3467,146.93,146.85,11.43]
[1727065802599,3.4034,146.91,146.87,3.404]
[1727065802795,1.3467,146.93,146.85,11.43]
[1727065803606,3.4034,146.91,146.87,3.4041]
[1727065803900,14.90036137,146.98,146.89,11.43]
[1727065804104,3.4021,146.96,146.92,3.403]
[1727065804302,1.4267,147.0,146.91,11.43]
[1727065804303,12.8567,147.0,146.91,11.43]
[1727065804494,1.4267,147.0,146.93,11.43]
[1727065804810,2.6367,147.01,146.93,11.43]
[1727065805402,2.6367,147.01,146.93,14.84006555]
[1727065805801,1.321,147.01,146.93,14.84006555]
[1727065806001,1.321,147.01,146.95,11.43]
[1727065806399,2.7556,147.05,146.95,11.43]
[1727065806595,12.8665,147.04,146.95,11.43]
[1727065806898,69.72380109,147.1,146.97,11.43]
[1727065807104,11.43,147.07,146.97,11.43]
[1727065807598,3.33322688,147.08,146.99,3.4012]
[1727065807798,3.33322688,147.08,146.97,11.43]
[1727065807799,11.43,147.07,146.97,11.43]
[1727065808003,3.4004,147.04,146.99,14.8312]
[1727065808203,3.4004,147.04,146.99,11.43]
[1727065808505,11.43,147.07,146.99,11.43]
[1727065809302,3.4004,147.04,147.0,3.401]
[1727065809502,11.43,147.07,146.99,11.43]
[1727065809699,15.6221,147.09,147.0,11.43]
[1727065810107,15.6221,147.09,147.01,3.4007]
[1727065810108,3.3999,147.06,147.01,3.4007]
[1727065810306,15.6221,147.09,147.0,11.43]
[1727065810608,15.6221,147.09,146.98,11.43]
[1727065810811,11.43,147.07,146.98,11.43]
[1727065811511,11.43,147.05,146.95,97.2396]
[1727065811900,3.4007,147.02,146.97,3.4018]
[1727065812507,3.4007,147.02,146.96,11.43]
[1727065812708,3.4005,147.03,146.98,3.4014]
[1727065813208,11.43,147.05,146.96,11.43]
[1727065813403,11.43,147.07,146.96,11.43]
[1727065813802,3.4007,147.03,146.98,3.4015]
[1727065814407,11.43,147.07,146.99,3.4013]
[1727065814609,11.43,147.07,146.98,11.43]
[1727065814811,15.6221,147.09,147.0,11.43]
[1727065815105,6.7937,147.19,147.0,11.43]
[1727065815316,11.43,147.12,147.03,11.43]
[1727065815609,3.3992,147.09,147.04,3.4002]
[1727065815809,3.3992,147.09,147.03,3.35816755]
[1727065816005,3.3992,147.09,147.05,11.43]
[1727065816201,3.3994,147.08,147.05,11.43]
[1727065816413,11.43,147.12,147.03,14.8302]
[1727065816608,11.43,147.12,147.03,14.7476954]
[1727065816812,3.3992,147.09,147.05,3.3999]
[1727065817305,11.43,147.12,147.04,14.83]
[1727065817609,11.43,147.12,147.04,11.43]
[1727065817810,14.2394,147.14,147.04,11.43]
[1727065818213,2.8094,147.14,147.06,11.43]
[1727065818411,3.3988,147.11,147.06,14.8296]
[1727065818813,2.8094,147.14,147.06,14.8296]
[1727065819113,1.406,147.14,147.06,11.43]
[1727065819609,3.3987,147.11,147.07,3.3994]
[1727065820008,2.4331,147.15,147.06,11.43]
[1727065820206,3.3985,147.12,147.08,3.3993]
[1727065820409,2.4331,147.15,147.08,11.43]
[1727065820609,3.3983,147.13,147.09,3.3989]
[1727065820910,2.4331,147.15,147.08,11.43]
[1727065821806,3.3985,147.12,147.08,14.8291]
[1727065822112,2.4331,147.15,147.08,11.43]
[1727065822309,3.3984,147.13,147.09,3.399]
[1727065822509,2.4331,147.15,147.09,3.399]
[1727065823013,3.3984,147.12,147.09,3.399]
[1727065823810,3.3984,147.12,147.08,14.8293]
[1727065824118,11.43,147.21,147.1,11.43]
[1727065824414,1.3446,147.21,147.14,11.43]
[1727065824711,3.3968,147.19,147.14,11.43]
[1727065825110,1.3446,147.21,147.14,14.83768367]
[1727065825506,1.3446,147.21,147.14,18.23548367]
[1727065825714,1.3446,147.21,147.14,11.43]
[1727065827016,3.3971,147.18,147.14,11.43]
[1727065827216,1.3446,147.21,147.14,11.43]
[1727065827716,3.3974,147.17,147.14,11.43]
[1727065828221,1.3446,147.21,147.13,1.3139]
[1727065828222,12.7746,147.21,147.13,1.3139]
[1727065828524,1.3446,147.21,147.14,11.43]
[1727065828820,1.3446,147.21,147.15,3.3976]
[1727065829214,1.3446,147.21,147.14,11.43]
[1727065829817,3.3974,147.17,147.14,11.43]
[1727065831115,3.3975,147.16,147.14,11.43]
[1727065831724,3.3973,147.17,147.14,14.8279]
[1727065832014,1.3446,147.21,147.14,11.43]
[1727065832210,3.3725383,147.2,147.12,11.43]
[1727065832419,4.7025383,147.2,147.12,11.43]
[1727065832812,1.33,147.2,147.12,11.43]
[1727065833216,3.3978,147.15,147.12,14.8284]
[1727065834928,1.33,147.2,147.14,11.43]
[1727065835424,1.3446,147.21,147.14,11.43]
[1727065835626,1.3446,147.21,147.16,11.43]
[1727065835916,12.7846,147.25,147.16,11.43]
[1727065836111,14.106,147.25,147.16,11.43]
[1727065836315,14.106,147.25,147.16,14.8274]
[1727065837016,3.3967,147.2,147.16,14.8274]
[1727065837317,14.106,147.25,147.16,11.43]
[1727065837521,2.676,147.25,147.16,11.43]
[1727065837714,14.106,147.25,147.16,11.43]
[1727065837910,11.43,147.25,147.16,14.8274]
[1727065838119,1.3214,147.27,147.17,1.3888]
[1727065838411,12.7514,147.27,147.17,1.3888]
[1727065838820,3.3967,147.2,147.17,1.3888]
[1727065839017,12.7514,147.27,147.18,11.43]
[1727065840121,3.3964,147.21,147.18,11.43]
[1727065840318,12.7514,147.27,147.18,11.43]
[1727065840726,11.43,147.23,147.15,1.3113]
[1727065841520,11.43,147.22,147.12,11.43]
[1727065841721,4.0982,147.21,147.12,11.43]
[1727065841918,3.3979,147.15,147.12,11.43]
[1727065842715,4.0982,147.21,147.12,11.43]
[1727065842716,3.3975,147.16,147.12,14.8282]
[1727065842924,4.0982,147.21,147.12,14.8282]
[1727065843718,4.0982,147.21,147.12,11.43]
[1727065843912,3.3972,147.17,147.12,11.43]
[1727065844111,4.0982,147.21,147.13,3.3981]
[1727065845417,4.0982,147.21,147.12,11.43]
[1727065845624,4.0982,147.21,147.12,14.8283]
[1727065846224,3.3976,147.16,147.13,3.3981]
[1727065846924,3.3973,147.17,147.14,14.8279]
[1727065847816,3.3975,147.16,147.14,11.43]
[1727065849121,15.5282,147.21,147.12,11.43]
[1727065849823,3.3978,147.15,147.12,14.8283]
[1727065851018,3.3978,147.15,147.12,11.43]
[1727065852616,3.3978,147.15,147.12,14.8283]
[1727065852815,3.3975,147.16,147.14,11.43]
[1727065853017,4.0982,147.21,147.14,11.43]
[1727065853222,4.0982,147.21,147.15,11.43]
[1727065853920,1.0,147.22,147.17,11.43]
[1727065854522,15.5628,147.27,147.17,11.43]
[1727065854925,1.0,147.26,147.17,11.43]
[1727065856331,3.3968,147.19,147.17,11.43]
[1727065856737,1.0,147.26,147.17,14.8272]
[1727065857430,1.0,147.26,147.17,11.43]
[1727065857736,1.0,147.26,147.19,11.43]
[1727065858627,1.0,147.26,147.19,14.8267]
[1727065859023,3.3965,147.2,147.19,11.43]
[1727065859730,12.43,147.26,147.16,1.342]
[1727065859935,12.43,147.26,147.15,11.43]
[1727065860122,3.3974,147.16,147.15,11.43]
[1727065860327,11.43,147.22,147.14,11.43]
[1727065860528,11.43,147.2,147.11,1.3189]
[1727065860724,11.43,147.18,147.1,81.54]
[1727065861333,11.43,147.18,147.09,11.43]
[1727065861533,14.85738645,147.18,147.09,11.43]
[1727065862336,3.3985,147.12,147.09,11.43]
[1727065862831,3.3985,147.12,147.09,14.829]
[1727065863328,3.3982,147.13,147.1,11.43]
[1727065863835,3.3984,147.12,147.1,11.43]
[1727065865328,3.3986,147.11,147.09,11.43]
[1727065866031,3.3984,147.12,147.09,11.43]
[1727065866735,3.3984,147.12,147.09,14.829]
[1727065868331,14.78735654,147.18,147.1,3.3987]
[1727065868332,3.3981,147.14,147.1,3.3987]
[1727065868535,2.4107,147.19,147.13,11.43]
[1727065868835,3.3974,147.17,147.13,14.8281]
[1727065869137,1.0,147.19,147.15,11.43]
[1727065870036,2.7218,147.21,147.15,11.43]
[1727065870233,3.3971,147.18,147.15,14.8276]
[1727065870537,2.7218,147.21,147.15,11.43]
[1727065871636,3.3974,147.16,147.15,11.43]
[1727065872440,3.3973,147.17,147.15,11.43]
[1727065873129,3.3974,147.16,147.15,11.43]
[1727065873638,2.7218,147.21,147.15,11.43]
[1727065874039,1.3142,147.24,147.16,11.43]
[1727065874242,1.3142,147.24,147.16,14.8274]
[1727065874633,1.3142,147.24,147.16,11.43]
[1727065875035,1.3142,147.24,147.14,11.43]
[1727065876430,3.3974,147.17,147.14,14.8278]
[1727065876743,1.3142,147.24,147.1,4.1259]
[1727065876744,14.90573409,147.2,147.1,4.1259]
[1727065877039,11.43,147.18,147.1,1.3788]
[1727065877345,11.43,147.18,147.09,11.43]
[1727065877641,12.8714,147.18,147.09,11.43]
[1727065877841,1.0,147.17,147.09,11.43]
[1727065879040,11.43,147.16,147.07,92.99]
[1727065879243,3.399,147.1,147.07,92.99]
[1727065879446,1.0,147.17,147.08,11.43]
[1727065879940,3.3981,147.14,147.1,11.43]
[1727065880137,1.0,147.17,147.1,11.43]
[1727065880337,3.3986,147.11,147.08,11.43]
[1727065880539,1.0,147.17,147.08,11.43]
[1727065881341,3.3983,147.13,147.08,14.8293]
[1727065881544,1.0,147.17,147.08,14.8293]
[1727065882545,3.3983,147.13,147.09,3.399]
[1727065882743,3.3983,147.13,147.1,11.43]
[1727065883338,1.0,147.17,147.1,14.8287]
[1727065883941,1.0,147.17,147.1,11.43]
[1727065884143,1.0,147.17,147.07,14.8293]
[1727065884441,3.3985,147.12,147.07,14.8293]
[1727065884642,3.3985,147.12,147.08,3.3993]
[1727065884945,3.3985,147.12,147.09,11.43]
[1727065885145,3.3982,147.13,147.09,14.829]
[1727065886247,1.0,147.17,147.09,11.43]
[1727065886248,3.3984,147.12,147.09,11.43]
[1727065886445,1.0,147.17,147.09,11.43]
[1727065886944,3.3985,147.12,147.09,11.43]
[1727065888135,3.3986,147.11,147.09,11.43]
[1727065889348,3.3984,147.12,147.09,14.829]
[1727065890444,3.3986,147.11,147.09,11.43]
[1727065890844,1.0,147.17,147.09,11.43]
[1727065891058,3.3985,147.12,147.09,14.829]
[1727065891249,1.0,147.17,147.09,11.43]
[1727065892350,3.3985,147.12,147.09,11.43]
[1727065894062,3.3985,147.12,147.09,14.829]
[1727065894363,3.3986,147.11,147.08,11.43]
[1727065895663,1.0,147.17,147.03,2.8447]
[1727065895871,11.43,147.13,147.03,1.4024]
[1727065896064,15.6004,147.12,147.03,1.4024]
[1727065896269,19.04718211,147.12,147.03,1.4024]
[1727065896469,19.04718211,147.12,147.02,14.8306]
[1727065896470,3.4001,147.05,147.02,11.43]
[1727065896766,20.04718211,147.12,147.02,11.43]
[1727065897158,3.3998,147.06,147.02,11.43]
[1727065897357,3.3998,147.06,147.02,14.8305]
[1727065897570,20.04718211,147.12,147.02,14.8305]
[1727065897772,3.4003,147.04,147.01,12.7425]
[1727065898065,11.43,147.1,147.01,11.43]
[1727065898469,11.43,147.08,146.99,11.43]
[1727065898964,3.4006,147.03,146.99,11.43]
[1727065899269,1.0,147.09,146.99,14.8313]
[1727065899470,12.43,147.09,146.99,14.8313]
[1727065899668,1.0,147.09,147.0,11.43]
[1727065899970,1.0,147.09,147.03,11.43]